bitfinex-derivatives/quotes_ETHF0:USTF0_20251008
["timestamp","ask_amount","ask_price","bid_price","bid_amount"]
[1759902280513,1.14843,4432.8,4432.7,3.9559]
[1759902280711,0.82453,4432.8,4432.7,3.9559]
[1759902281613,0.4186,4432.8,4432.7,3.9559]
[1759902281810,0.3356764,4433.1,4432.7,3.9559]
[1759902281811,0.0020764,4433.1,4433.0,1.27581]
[1759902282007,0.0020764,4433.1,4433.0,2.24360485]
[1759902282213,0.7667764,4433.1,4433.0,0.8699]
[1759902282606,0.7667764,4433.1,4432.7,44.97559485]
[1759902282607,0.40593,4432.8,4432.7,44.97559485]
[1759902282817,1.17063,4432.8,4432.7,4.70089485]
[1759902283016,1.17063,4432.8,4432.7,3.7331]
[1759902283216,1.17063,4432.8,4432.7,44.5331]
[1759902283516,1.17063,4432.8,4432.7,44.2204]
[1759902283712,1.17063,4432.8,4432.7,3.7331]
[1759902284219,1.17063,4432.8,4432.7,0.5253]
[1759902284918,1.17063,4432.8,4432.7,0.3127]
[1759902285118,1.17063,4432.8,4432.7,0.5253]
[1759902285519,0.7647,4432.8,4432.7,0.5253]
[1759902286019,0.0020764,4433.1,4433.0,1.27581]
[1759902286422,0.0020764,4433.1,4433.0,42.07581]
[1759902286917,0.0020764,4433.1,4433.0,47.07581]
[1759902287216,3.2078,4433.6,4433.5,1.27576]
[1759902287415,3.9725,4433.6,4433.5,0.8699]
[1759902287721,0.7647,4433.3,4433.2,0.7513]
[1759902288124,0.76741638,4433.3,4433.2,0.5253]
[1759902288623,0.76741638,4433.3,4433.2,0.74]
[1759902289317,0.43381638,4433.3,4433.2,0.74]
[1759902290413,0.83701,4433.0,4432.9,0.2126]
[1759902290719,0.83701,4433.0,4432.7,4.58152485]
[1759902290720,0.7647,4432.8,4432.4,1.84234787]
[1759902291022,0.7647,4432.2,4432.1,3.2078]
[1759902293321,0.7647,4432.2,4432.1,3.5205]
[1759902294232,0.7647,4432.2,4432.1,3.7331]
[1759902295027,0.7647,4432.2,4432.1,3.5205]
[1759902295327,0.7647,4432.2,4432.1,0.3127]
[1759902296329,0.7647,4432.2,4432.1,0.5253]
[1759902296929,0.7647,4432.2,4432.0,0.00267778]
[1759902297330,0.7647,4432.1,4432.0,0.00267778]
[1759902297530,0.7647,4432.1,4432.0,0.31537778]
[1759902297730,0.7647,4432.1,4432.0,0.52797778]
[1759902299835,0.7647,4432.1,4432.0,0.31537778]
[1759902300029,0.7647,4432.1,4432.0,0.00267778]
[1759902301235,0.7647,4431.2,4431.1,3.7331]
[1759902301833,0.7647,4431.2,4431.1,3.9478]
[1759902302228,0.4311,4431.2,4431.1,3.94970366]
[1759902302424,0.2245,4431.5,4431.4,0.83335]
[1759902302625,3.2078,4432.2,4431.4,0.83335]
[1759902302626,0.4311,4432.2,4432.1,1.14599]
[1759902302830,0.2245,4432.2,4432.1,1.14599]
[1759902303229,0.4311,4432.2,4432.1,0.74]
[1759902303429,0.7647,4432.2,4432.1,0.5253]
[1759902303726,0.7647,4432.2,4432.1,0.3127]
[1759902303929,0.7647,4432.2,4432.1,0.5253]
[1759902304233,0.3336,4432.6,4432.2,0.40598]
[1759902304533,0.3336,4432.6,4432.5,0.5253]
[1759902304534,0.7647,4432.6,4432.5,0.5253]
[1759902304735,0.9907,4432.6,4432.5,0.5253]
[1759902304928,0.4311,4432.1,4432.0,0.7485]
[1759902305433,0.4311,4432.1,4432.0,0.9683]
[1759902305732,0.2218,4432.3,4432.2,0.61848]
[1759902305935,0.2218,4432.3,4432.2,1.14838]
[1759902306137,0.4368,4432.3,4432.2,1.14838]
[1759902306337,0.775,4432.3,4432.2,1.14838]
[1759902306736,0.775,4432.3,4432.2,0.7424]
[1759902307333,0.4368,4432.3,4432.2,0.7424]
[1759902307539,3.2078,4432.7,4432.6,1.14834]
[1759902307736,3.2078,4432.7,4432.6,2.11613485]
[1759902307941,0.00271638,4433.3,4433.2,0.7424]
[1759902310236,0.77771638,4433.3,4433.2,0.7424]
[1759902310437,0.43951638,4433.3,4433.2,0.7424]
[1759902310737,0.00271638,4433.3,4433.2,0.7424]
[1759902312836,0.22451638,4433.3,4433.2,0.9684]
[1759902313236,0.00271638,4433.3,4433.2,0.9684]
[1759902313440,1.18359638,4433.3,4433.2,0.7424]
[1759902313640,0.775,4433.0,4432.9,3.2078]
[1759902314235,0.8853,4433.0,4432.9,3.2078]
[1759902314635,0.00271638,4433.3,4433.0,0.8525]
[1759902314845,0.43951638,4433.3,4433.2,1.51844254]
[1759902315245,0.77771638,4433.3,4433.2,1.51844254]
[1759902318246,1.18091,4433.0,4432.9,3.7304]
[1759902318438,1.18091,4433.0,4432.9,4.50644254]
[1759902318644,0.4368,4433.0,4432.9,4.72624254]
[1759902319039,0.63039638,4433.3,4433.2,0.7424]
[1759902319346,1.40959638,4433.3,4433.2,1.51844254]
[1759902319641,1.40959638,4433.3,4433.2,1.29864254]
[1759902320942,0.4368,4433.0,4432.9,3.7304]
[1759902321148,0.775,4433.0,4432.9,3.7304]
[1759902323348,0.40592,4432.9,4432.8,0.77604254]
[1759902323548,1.18092,4432.9,4432.8,1.08614254]
[1759902323745,1.18092,4432.9,4432.8,1.29864254]
[1759902324255,1.18092,4432.9,4432.8,0.5226]
[1759902325241,1.18092,4432.9,4432.8,1.29864254]
[1759902325441,1.40692,4432.9,4432.8,1.51844254]
[1759902325655,0.6628,4432.9,4432.8,1.51844254]
[1759902328351,0.00271638,4433.3,4433.2,0.7424]
[1759902328549,0.00271638,4433.3,4433.2,1.74444254]
[1759902328751,0.00271638,4433.3,4433.2,42.54444254]
[1759902330057,0.00271638,4433.3,4433.2,41.7684]
[1759902331455,0.34091638,4433.3,4433.2,41.7684]
[1759902331652,1.18091,4433.0,4432.9,0.5226]
[1759902332051,1.18091,4433.0,4432.9,0.3101]
[1759902332448,0.775,4432.9,4432.8,3.2078]
[1759902332650,0.775,4432.9,4432.5,1.08614254]
[1759902332651,0.5532,4432.9,4432.5,1.08614254]
[1759902332857,1.18094,4432.6,4432.5,1.29864254]
[1759902335264,0.775,4432.6,4432.5,1.29864254]
[1759902335966,0.775,4432.6,4432.5,1.51844254]
[1759902336258,0.775,4432.6,4432.5,1.64604254]
[1759902336960,0.4368,4432.6,4432.5,1.64604254]
[1759902337566,0.7615,4432.6,4432.5,1.64604254]
[1759902337859,0.40594,4432.7,4432.6,0.7354]
[1759902338058,0.61814,4432.7,4432.6,0.7354]
[1759902338460,0.82534,4432.7,4432.6,0.7354]
[1759902339661,0.61814,4432.7,4432.6,0.7354]
[1759902339857,0.7441,4432.7,4432.6,0.2082]
[1759902340054,0.7441,4432.7,4432.6,0.98424254]
[1759902340364,0.7441,4432.7,4432.6,1.31184254]
[1759902341262,0.7441,4432.7,4432.3,3.98384254]
[1759902341454,1.15896,4432.4,4432.3,1.10364254]
[1759902341660,0.40601,4431.9,4431.8,3.2078]
[1759902341850,0.40601,4431.9,4431.4,1.84234787]
[1759902341851,0.40604,4431.6,4431.4,1.84234787]
[1759902342057,0.753,4431.4,4431.3,4.61780254]
[1759902342461,0.4231,4431.4,4431.3,5.17100254]
[1759902343856,0.4231,4431.4,4431.3,4.76494254]
[1759902344454,0.40603,4431.7,4431.5,0.1275]
[1759902344763,0.2178,4431.6,4431.5,0.9086]
[1759902344965,0.226,4431.9,4431.6,0.40604]
[1759902345164,0.406,4432.0,4431.5,0.4551]
[1759902345165,0.406,4432.0,4431.9,0.3276]
[1759902345365,0.40606,4431.3,4431.1,0.00190366]
[1759902345567,0.979,4431.2,4431.1,0.00190366]
[1759902346061,3.96186827,4431.2,4431.1,0.00190366]
[1759902349469,0.4231,4429.6,4429.3,3.5354]
[1759902349667,0.2178,4429.5,4429.4,0.7811]
[1759902349961,0.753,4429.5,4429.4,0.7811]
[1759902350367,0.75507494,4429.5,4429.4,0.78363632]
[1759902350968,0.75507494,4429.5,4429.4,0.55803632]
[1759902351163,0.75507494,4429.5,4429.4,0.33013632]
[1759902351469,0.86537494,4429.5,4429.4,0.00253632]
[1759902352162,1.15928,4428.9,4428.8,3.2078]
[1759902352357,1.38528,4428.9,4428.8,3.2078]
[1759902352564,0.979,4428.9,4428.8,3.2078]
[1759902353167,0.979,4428.9,4428.8,3.21037144]
[1759902353764,0.3299,4428.1,4427.9,0.02258432]
[1759902353970,0.979,4428.1,4428.0,0.3276]
[1759902354379,0.979,4428.1,4428.0,0.5555]
[1759902354883,0.979,4428.1,4428.0,0.5570843]
[1759902355084,0.979,4428.1,4428.0,0.0015843]
[1759902355384,3.86471832,4428.1,4428.0,0.0015843]
[1759902358278,3.63871832,4428.1,4428.0,0.4550843]
[1759902358477,0.2178,4428.1,4428.0,0.5825843]
[1759902358685,0.753,4428.1,4428.0,0.5825843]
[1759902358975,0.4231,4428.1,4428.0,0.9101843]
[1759902359180,0.2178,4428.1,4428.0,0.9101843]
[1759902359490,0.2178,4428.1,4428.0,0.0015843]
[1759902359491,1.15936,4428.1,4428.0,0.0015843]
[1759902359680,4.09938024,4428.1,4428.0,0.0015843]
[1759902360487,3.69302024,4428.1,4428.0,0.5570843]
[1759902360982,0.98,4428.1,4428.0,0.9101843]
[1759902361182,0.753,4428.1,4428.0,0.0015843]
[1759902361380,0.98,4428.1,4428.0,0.0015843]
[1759902361775,0.98,4428.1,4428.0,0.2294843]
[1759902362085,0.98,4428.1,4428.0,0.9101843]
[1759902362280,0.98,4428.1,4428.0,0.7826843]
[1759902362583,0.98,4428.1,4428.0,0.9101843]
[1759902362779,0.6501,4428.1,4428.0,0.9101843]
[1759902363283,0.98,4428.1,4428.0,0.9101843]
[1759902364580,3.2078,4428.4,4428.0,0.9889443]
[1759902364784,4.03724,4428.4,4428.0,0.1290843]
[1759902365091,0.753,4428.1,4428.0,0.3291843]
[1759902365490,0.753,4428.1,4428.0,0.0015843]
[1759902366185,0.753,4428.1,4428.0,0.5444843]
[1759902366381,0.4231,4428.1,4428.0,0.8788843]
[1759902366888,0.9736,4428.1,4428.0,0.8788843]
[1759902367086,0.6501,4428.1,4428.0,0.8788843]
[1759902367485,3.2078,4428.4,4428.0,0.8788843]
[1759902367685,3.427,4428.4,4428.3,0.7535]
[1759902367991,3.6444,4428.4,4428.3,0.7535]
[1759902368189,3.8714,4428.4,4428.3,0.7535]
[1759902368390,4.1949,4428.4,4428.3,0.7535]
[1759902368591,4.1949,4428.4,4428.3,0.5429]
[1759902369192,3.9679,4428.4,4428.3,0.5429]
[1759902369386,4.1949,4428.4,4428.3,0.3222]
[1759902369587,0.7601,4428.1,4428.0,0.3237843]
[1759902369782,1.39346,4428.1,4428.0,0.3237843]
[1759902369986,1.39246,4428.1,4428.0,0.3237843]
[1759902370690,1.39246,4428.1,4428.0,0.5444843]
[1759902371192,0.6626,4428.1,4428.0,0.8788843]
[1759902371395,3.92289653,4428.1,4428.0,0.0015843]
[1759902373093,0.4366,4428.1,4428.0,0.8788843]
[1759902373795,0.2192,4428.4,4428.3,0.7535]
[1759902373997,0.4452,4428.4,4428.3,0.7535]
[1759902374297,0.6626,4428.4,4428.3,0.7535]
[1759902374491,0.9861,4428.4,4428.3,0.7535]
[1759902375189,3.61409,4428.9,4428.8,0.7535]
[1759902375393,4.37419,4428.9,4428.8,0.7535]
[1759902375593,4.60119,4428.9,4428.8,0.7535]
[1759902375793,4.60119,4428.9,4428.8,0.5429]
[1759902376597,4.05069,4428.9,4428.8,0.7535]
[1759902376897,0.2192,4428.9,4428.8,0.7535]
[1759902377091,0.62545,4429.3,4429.2,0.7535]
[1759902377297,1.06985,4429.3,4429.2,0.7535]
[1759902377498,1.39335,4429.3,4429.2,0.7535]
[1759902377701,0.00207494,4429.5,4429.4,0.7535]
[1759902378091,1.16625,4430.4,4430.3,0.5429]
[1759902378287,0.7601,4429.1,4428.7,3.2078]
[1759902378499,0.1072,4429.5,4428.2,3.2078]
[1759902378500,0.7601,4428.3,4428.2,3.2078]
[1759902378700,0.9871,4428.3,4428.2,3.2078]
[1759902378895,0.7601,4428.1,4428.0,0.0015843]
[1759902379099,0.7625773,4428.1,4428.0,0.0015843]
[1759902380199,1.27674716,4428.1,4428.0,0.0015843]
[1759902380405,0.77674716,4428.1,4428.0,0.0015843]
[1759902383904,0.74364716,4428.1,4428.0,0.4475843]
[1759902385802,0.51664716,4428.1,4428.0,0.4475843]
[1759902386010,0.51664716,4428.1,4428.0,0.0015843]
[1759902386306,0.74364716,4428.1,4428.0,0.0015843]
[1759902386801,0.74364716,4428.1,4428.0,0.3237843]
[1759902387001,0.74364716,4428.1,4428.0,0.8788843]
[1759902387407,0.74364716,4428.1,4428.0,0.4475843]
[1759902387605,0.74364716,4428.1,4428.0,0.0015843]
[1759902387805,0.51664716,4428.1,4428.0,0.0015843]
[1759902388099,0.74364716,4428.1,4428.0,0.0015843]
[1759902388708,3.74428933,4428.1,4428.0,0.0015843]
[1759902391105,3.51728933,4428.1,4428.0,0.0015843]
[1759902391306,3.74428933,4428.1,4428.0,0.4475843]
[1759902391610,3.51728933,4428.1,4428.0,0.4475843]
[1759902391915,3.51728933,4428.1,4428.0,0.8788843]
[1759902392108,3.74428933,4428.1,4428.0,0.8788843]
[1759902392512,3.74428933,4428.1,4428.0,0.4475843]
[1759902393109,3.51728933,4428.1,4428.0,0.4475843]
[1759902393309,3.74428933,4428.1,4428.0,0.4475843]
[1759902395814,3.74428933,4428.1,4428.0,0.0015843]
[1759902398820,3.23011947,4428.1,4428.0,0.0015843]
[1759902399222,3.00311947,4428.1,4428.0,0.0015843]
[1759902399421,3.22911947,4428.1,4428.0,0.0015843]
[1759902401922,3.22911947,4428.1,4428.0,0.3395843]
[1759902402324,3.00311947,4428.1,4428.0,0.4658843]
[1759902402618,0.2284773,4428.1,4428.0,0.4658843]
[1759902403026,2.99949676,4428.1,4428.0,0.0015843]
[1759902403221,2.99949676,4428.1,4428.0,0.3395843]
[1759902403526,3.22549676,4428.1,4428.0,0.0015843]
[1759902405526,3.22549676,4428.1,4428.0,0.3395843]
[1759902405822,2.99949676,4428.1,4428.0,0.3395843]
[1759902406124,3.22549676,4428.1,4428.0,0.3395843]
[1759902406725,0.2284773,4428.1,4428.0,0.9028843]
[1759902406925,0.2284773,4428.1,4428.0,0.4658843]
[1759902408324,0.2284773,4428.1,4428.0,0.6924843]
[1759902408527,0.2284773,4428.1,4428.0,0.4658843]
[1759902409530,0.0024773,4428.1,4428.0,0.4658843]
[1759902409729,0.2284773,4428.1,4428.0,0.4658843]
[1759902409932,1.19843267,4428.1,4428.0,0.4658843]
[1759902410733,1.71450181,4428.1,4428.0,0.4658843]
[1759902412035,4.67428559,4428.1,4428.0,0.0015843]
[1759902412631,0.40645,4427.1,4427.0,1.74014787]
[1759902412835,1.60240537,4427.1,4427.0,0.4618]
[1759902413037,3.60347275,4427.1,4427.0,0.4618]
[1759902413239,0.63245,4427.1,4427.0,0.4618]
[1759902413437,0.40649,4426.6,4426.5,3.5582]
[1759902413731,0.40649,4426.6,4426.3,0.338]
[1759902413732,0.40651,4426.4,4426.3,0.338]
[1759902413935,0.40651,4426.4,4425.4,2.00590354]
[1759902413936,0.40659,4425.6,4425.5,1.96924787]
[1759902414240,3.2078,4426.5,4426.0,0.3529]
[1759902414241,0.40653,4426.2,4426.0,0.3529]
[1759902414538,3.6143,4426.5,4426.4,0.2266]
[1759902414736,3.8403,4426.5,4426.4,0.5646]
[1759902415640,3.8403,4426.5,4426.4,0.338]
[1759902416027,3.6143,4426.5,4426.4,0.338]
[1759902416234,6.30749951,4426.5,4425.6,0.2266]
[1759902416436,0.40658,4425.7,4425.6,0.338]
[1759902416638,0.63258,4425.7,4425.6,0.338]
[1759902416838,8.56358716,4425.7,4425.5,0.00225452]
[1759902417042,3.56358716,4425.7,4425.5,0.00225452]
[1759902417339,3.33758716,4425.7,4425.5,0.00225452]
[1759902417536,0.40658,4425.8,4425.6,0.338]
[1759902417729,0.226,4425.7,4425.6,0.5646]
[1759902418839,0.40658,4425.8,4425.6,0.5646]
[1759902419042,0.40655,4426.1,4426.0,0.1263]
[1759902419233,0.63255,4426.1,4426.0,0.6909]
[1759902419737,0.63255,4426.1,4426.0,0.4643]
[1759902419945,0.40659,4425.6,4425.5,0.69315452]
[1759902420238,3.38962115,4426.1,4426.0,0.4643]
[1759902420442,3.61562115,4426.1,4426.0,0.6909]
[1759902421045,3.61562115,4426.1,4426.0,0.4643]
[1759902421338,0.40658,4425.7,4425.5,0.00225452]
[1759902421545,0.226,4425.6,4425.5,0.46655452]
[1759902421740,3.21435093,4425.6,4425.5,0.46655452]
[1759902422444,0.40658,4425.7,4425.5,0.46655452]
[1759902422445,0.40658,4425.7,4425.6,0.338]
[1759902422741,0.40658,4425.7,4425.5,0.35515452]
[1759902422742,2.87244023,4425.6,4425.5,0.00225452]
[1759902422943,3.50602023,4425.7,4425.5,0.00225452]
[1759902423134,0.63358,4425.7,4425.5,0.00225452]
[1759902423339,2.87244023,4425.6,4425.5,0.00225452]
[1759902423743,0.40668,4424.6,4424.5,0.1263]
[1759902423943,0.63368,4424.6,4424.5,0.1263]
[1759902424139,0.63368,4424.6,4424.5,0.4643]
[1759902424733,0.63550262,4424.6,4424.5,0.00208828]
[1759902424936,0.63550262,4424.6,4423.1,0.338]
[1759902424937,0.40681,4423.2,4423.1,0.338]
[1759902425142,0.227,4423.2,4423.1,0.5646]
[1759902425556,3.19492388,4423.2,4423.1,0.338]
[1759902425746,0.227,4423.2,4423.1,0.34923567]
[1759902426052,3.2078,4423.8,4423.7,0.7843]
[1759902426346,3.4348,4423.8,4423.7,0.337]
[1759902426837,1.01854262,4424.6,4424.5,0.4689]
[1759902426838,0.00182262,4424.6,4424.5,0.4689]
[1759902427248,2.95971375,4424.6,4424.5,0.4689]
[1759902427843,0.22882262,4424.6,4424.5,0.48013567]
[1759902428850,3.12889088,4424.6,4424.5,0.48013567]
[1759902429040,3.12889088,4424.6,4424.5,0.14313567]
[1759902429246,3.12889088,4424.6,4424.0,0.1319]
[1759902429247,0.40672,4424.1,4424.0,0.1319]
[1759902429549,3.53378826,4424.1,4424.0,0.1319]
[1759902430553,3.53378826,4424.1,4424.0,0.4689]
[1759902430848,3.61451,4424.3,4424.1,0.337]
[1759902431043,0.227,4424.2,4424.1,0.337]
[1759902431639,0.40672,4424.1,4424.0,0.4689]
[1759902432244,0.227,4424.1,4424.0,0.4689]
[1759902433059,0.00182262,4424.6,4424.5,0.1319]
[1759902433350,0.00182262,4424.6,4424.5,0.4689]
[1759902433537,0.22882262,4424.6,4424.5,0.4689]
[1759902434244,0.00182262,4424.6,4424.5,5.4689]
[1759902434551,3.2078,4425.4,4425.1,0.337]
[1759902434851,0.227,4425.3,4425.1,0.337]
[1759902435047,0.227,4425.3,4425.0,0.1319]
[1759902435246,0.63362,4425.3,4425.1,0.337]
[1759902435548,0.63633659,4425.3,4425.1,0.337]
[1759902435748,0.40663,4425.2,4425.0,0.1319]
[1759902435952,0.40663,4425.2,4425.1,0.337]
[1759902436346,0.00271659,4425.3,4425.1,0.337]
[1759902436551,0.227,4425.2,4425.1,0.337]
[1759902437245,0.00271659,4425.3,4425.2,0.74362]
[1759902437456,0.00271659,4425.3,4425.2,0.337]
[1759902438249,0.00271659,4425.3,4425.2,0.7843]
[1759902438459,0.00271659,4425.3,4425.2,3.9921]
[1759902438954,0.00271659,4425.3,4425.2,8.9921]
[1759902439156,3.6143,4426.5,4426.4,0.2243]
[1759902439351,3.6143,4426.5,4426.4,0.5613]
[1759902439856,0.6335,4426.5,4426.4,0.5613]
[1759902440356,0.00260189,4426.5,4426.4,0.33862768]
[1759902440558,0.22960189,4426.5,4426.4,0.33862768]
[1759902440754,0.00260189,4426.5,4426.4,0.33862768]
[1759902441259,0.00260189,4426.5,4426.4,8.54642768]
[1759902441657,3.2078,4427.6,4427.5,0.1319]
[1759902441957,3.4348,4427.6,4427.5,0.4689]
[1759902442258,0.6334,4427.6,4427.5,0.4689]
[1759902442458,0.6334,4427.6,4427.0,0.1319]
[1759902442459,0.40644,4427.2,4427.1,0.337]
[1759902442756,3.84344373,4427.2,4427.1,0.337]
[1759902443346,0.40864373,4427.2,4427.1,0.337]
[1759902443553,0.40864373,4427.2,4426.5,0.1319]
[1759902443554,0.40649,4426.7,4426.5,0.1319]
[1759902443750,0.227,4426.6,4426.5,0.1319]
[1759902443956,0.4065,4426.5,4426.4,0.00162768]
[1759902444249,0.4065,4426.5,4425.1,0.337]
[1759902444250,1.01648,4425.6,4425.1,0.337]
[1759902444454,1.01648,4425.6,4424.4,3.2078]
[1759902444455,0.40662,4425.2,4424.4,3.2078]
[1759902444653,0.227,4425.1,4425.0,0.4689]
[1759902444851,3.10751927,4425.1,4425.0,0.4689]
[1759902445159,3.10751927,4425.1,4425.0,0.47134888]
[1759902445349,3.2078,4425.5,4425.0,0.47134888]
[1759902445658,0.40662,4425.3,4425.1,0.337]
[1759902445858,0.40663,4425.2,4425.1,0.337]
[1759902446057,3.60626298,4425.2,4425.1,0.337]
[1759902446749,3.19963298,4425.2,4425.1,0.337]
[1759902446948,3.6144,4425.5,4425.1,0.337]
[1759902447149,0.63361,4425.4,4425.1,0.337]
[1759902447348,0.40662,4425.3,4425.1,0.337]
[1759902447749,1.0163,4426.4,4425.0,0.54098888]
[1759902447750,3.2078,4426.0,4425.6,0.337]
[1759902447949,3.96902409,4427.5,4425.6,0.337]
[1759902447950,0.40654,4426.2,4426.0,0.1319]
[1759902448153,0.227,4426.1,4426.0,0.4689]
[1759902448363,3.2078,4426.5,4426.1,0.337]
[1759902448659,0.227,4426.4,4426.1,0.337]
[1759902448849,0.63352,4426.4,4426.1,0.337]
[1759902449050,3.2078,4426.5,4426.0,0.1319]
[1759902449253,3.2078,4426.5,4426.4,0.337]
[1759902449463,3.61644373,4427.2,4427.1,0.337]
[1759902450059,0.63564373,4427.2,4427.1,0.337]
[1759902450765,0.22920373,4427.2,4427.1,0.337]
[1759902451060,0.00220373,4427.2,4427.1,0.337]
[1759902451653,0.00220373,4427.2,4427.1,5.337]
[1759902452756,3.2078,4427.7,4427.6,0.7434]
[1759902453766,3.2094387,4427.7,4427.6,5.7434]
[1759902454265,3.2094387,4427.7,4427.6,5.337]
[1759902454556,3.6158287,4427.7,4427.6,0.337]
[1759902454957,3.2094387,4427.7,4427.6,0.337]
[1759902455356,0.0016387,4427.7,4427.6,0.7434]
[1759902455561,0.0016387,4427.7,4427.6,0.337]
[1759902457971,0.4080287,4427.7,4427.6,0.337]
[1759902459463,0.0016387,4427.7,4427.6,0.337]
[1759902462169,0.40634,4428.3,4428.1,0.3217]
[1759902462369,0.40634,4428.3,4428.2,0.3217]
[1759902463172,0.00186303,4428.3,4428.2,0.32439843]
[1759902464674,3.61407,4429.1,4429.0,0.4489]
[1759902464875,3.84007,4429.1,4429.0,0.4489]
[1759902465578,3.6162092,4429.1,4429.0,0.4489]
[1759902466876,0.0021392,4429.1,4429.0,0.4489]
[1759902467280,0.2281392,4429.1,4429.0,0.1272]
[1759902467575,3.18177813,4429.1,4429.0,0.1272]
[1759902467780,3.18177813,4429.1,4429.0,0.4489]
[1759902468776,0.0021392,4429.1,4429.0,0.4489]
[1759902469274,0.4084092,4429.1,4429.0,0.4489]
[1759902469481,0.0021392,4429.1,4429.0,0.4489]
[1759902470077,0.0021392,4429.1,4429.0,5.4489]
[1759902470470,0.0021392,4429.1,4429.0,46.2489]
[1759902472083,3.2078,4429.8,4429.0,45.9272]
[1759902472383,3.2078,4429.8,4429.7,0.3217]
[1759902472782,0.40617,4430.2,4429.8,0.4062]
[1759902472982,0.40617,4430.2,4430.1,0.3217]
[1759902473185,0.00236906,4430.2,4430.1,0.3217]
[1759902475882,0.22836906,4430.2,4430.1,0.3217]
[1759902476281,0.00236906,4430.2,4430.1,0.3217]
[1759902478383,0.00236906,4430.2,4430.1,0.7625]
[1759902483790,0.00236906,4430.2,4430.1,0.3217]
[1759902484285,0.40852906,4430.2,4430.1,0.7625]
[1759902484492,0.00236906,4430.2,4430.1,0.7625]
[1759902485192,0.00236906,4430.2,4430.1,0.3217]
[1759902485387,0.51990245,4430.2,4430.1,0.3217]
[1759902487090,0.51980685,4430.2,4430.1,0.3217]
[1759902487391,0.00236906,4430.2,4430.1,0.5374]
[1759902487691,0.00236906,4430.2,4430.1,0.7576]
[1759902487894,0.22836906,4430.2,4430.1,0.7576]
[1759902488990,0.74604258,4430.2,4430.1,0.3217]
[1759902489294,0.52004258,4430.2,4430.1,0.7574]
[1759902489598,0.00236906,4430.2,4430.1,0.7574]
[1759902491889,0.52071401,4430.2,4430.1,0.7574]
[1759902492086,0.00236906,4430.2,4430.1,0.7574]
[1759902492495,0.51794161,4430.2,4430.1,0.7574]
[1759902493092,0.00236906,4430.2,4430.1,0.7574]
[1759902494395,0.00236906,4430.2,4430.1,0.3217]
[1759902494599,0.5186427,4430.2,4430.1,0.3217]
[1759902494900,0.40622,4429.6,4429.5,0.3427]
[1759902495197,0.40627,4429.1,4429.0,0.1272]
[1759902495497,0.40631,4428.6,4428.5,0.3427]
[1759902496201,0.40631,4428.6,4428.5,0.5629]
[1759902496894,3.2078,4429.1,4429.0,0.8779]
[1759902497094,3.95093631,4429.1,4429.0,0.8779]
[1759902497298,3.4348,4429.1,4429.0,0.8779]
[1759902498201,0.40626,4429.2,4429.0,0.5633]
[1759902498593,0.63326,4429.2,4429.0,0.5633]
[1759902498794,0.63326,4429.2,4429.1,0.7503]
[1759902499101,3.61402,4429.6,4429.5,0.8779]
[1759902502103,3.2078,4429.6,4429.5,0.8779]
[1759902502292,0.4062,4429.9,4429.6,0.40622]
[1759902502605,0.40852906,4430.2,4430.1,0.7503]
[1759902504803,0.63552906,4430.2,4430.1,0.7503]
[1759902505004,0.62462906,4430.2,4430.1,0.7503]
[1759902508405,0.40852906,4430.2,4430.1,0.7503]
[1759902511701,0.00236906,4430.2,4430.1,0.7503]
[1759902514411,0.44556906,4430.2,4430.1,0.7503]
[1759902515314,0.21846906,4430.2,4430.1,0.7503]
[1759902515508,0.00236906,4430.2,4430.1,3.9581]
[1759902516104,0.00236906,4430.2,4430.1,0.7503]
[1759902518816,0.21086906,4430.2,4430.1,0.7503]
[1759902519014,0.00236906,4430.2,4430.1,0.7503]
[1759902520019,0.43736906,4430.2,4430.1,0.7503]
[1759902520513,0.00236906,4430.2,4430.1,0.7503]
[1759902522307,0.21296906,4430.2,4430.1,0.7503]
[1759902522716,0.00236906,4430.2,4430.1,0.7503]
[1759902524322,0.00236906,4430.2,4430.1,7.13641692]
[1759902525818,0.21296906,4430.2,4430.1,3.9581]
[1759902526320,0.00236906,4430.2,4430.1,3.9581]
[1759902528016,3.82445,4431.4,4431.3,0.7402]
[1759902528323,4.27695,4431.4,4431.3,0.7402]
[1759902528523,4.59725,4431.4,4431.3,0.7402]
[1759902528921,4.599383,4431.4,4431.3,0.7402]
[1759902529119,4.053083,4431.4,4431.3,0.7402]
[1759902530519,3.826583,4431.4,4431.3,0.7402]
[1759902530718,4.053083,4431.4,4431.3,0.7402]
[1759902531821,0.002133,4431.4,4431.3,1.14626]
[1759902532328,0.002133,4431.4,4431.3,1.329377]
[1759902533917,0.406,4432.1,4431.7,0.40602]
[1759902534230,4.05084,4432.6,4432.5,0.8739]
[1759902534417,4.37114,4432.6,4432.5,0.8739]
[1759902534726,1.16339,4432.1,4432.0,0.346]
[1759902535118,1.16339,4432.1,4432.0,0.87553444]
[1759902535119,0.61819131,4432.1,4432.0,0.87553444]
[1759902535815,0.21220131,4432.1,4432.0,1.28153444]
[1759902536022,0.4591,4432.9,4432.8,0.5302]
[1759902536224,0.6851,4432.9,4432.8,0.5302]
[1759902536424,1.09102,4432.9,4432.8,0.5302]
[1759902536724,1.41132,4432.9,4432.8,0.5302]
[1759902536924,1.41416681,4432.9,4432.8,0.5302]
[1759902537312,1.18816681,4432.9,4432.8,0.5302]
[1759902537517,1.41416681,4432.9,4432.8,0.5302]
[1759902538326,0.64136681,4432.9,4432.8,0.7402]
[1759902538536,0.86736681,4432.9,4432.8,0.7402]
[1759902539021,1.41416681,4432.9,4432.8,0.7402]
[1759902539421,1.41416681,4432.9,4432.8,0.3179]
[1759902539621,1.41416681,4432.9,4432.5,0.1337]
[1759902539622,0.40594,4432.6,4432.5,0.1337]
[1759902539822,0.84304,4432.6,4432.5,0.346]
[1759902540224,0.84309,4432.1,4432.0,0.66553444]
[1759902540429,1.16339,4432.1,4432.0,0.66553444]